Workbook

Sheet Marketing Budget Plan
A1: Marketing Budget Plan
A2: Category | B2: Estimated Quantity | C2: Estimated Cost per Unit | D2: Estimated Subtotal | E2: Notes
A4: Research | E4: fsdds
A5: Research firm fees | B5: 2 | C5: $2,300.00 | D5: =SUM(B5*C5) -> $4,600.00
A6: Web research | B6: 1 | C6: $1,100.00 | D6: =SUM(B6*C6) -> $1,100.00
A7: Independent research | B7: 3 | C7: $300.00 | D7: =SUM(B7*C7) -> $900.00
A8: Other research | B8: 2 | C8: $250.00 | D8: =SUM(B8*C8) -> $500.00
A10: Research Costs Total | D10: =SUM(D5:D9) -> $7,100.00
A12: Communications
A13: Promotional brochures | B13: 5,000 | C13: $0.15 | D13: =SUM(B13*C13) -> $750.00
A14: Television | B14: 5 | C14: $4,000.00 | D14: =SUM(B14*C14) -> $20,000.00
A15: Radio | B15: 13 | C15: $350.00 | D15: =SUM(B15*C15) -> $4,550.00
A16: Web | B16: 1 | C16: $350.00 | D16: =SUM(B16*C16) -> $350.00
A18: Communications Costs Total | D18: =SUM(D13:D17) -> $25,650.00
A20: Networking
A21: Memberships | B21: 3 | C21: $50.00 | D21: =SUM(B21*C21) -> $150.00
A22: Affiliations | B22: 2 | C22: $20.00 | D22: =SUM(B22*C22) -> $40.00
A23: Subscriptions | B23: 2 | C23: $32.00 | D23: =SUM(B23*C23) -> $64.00
A25: Networking Costs Total | D25: =SUM(D21:D24) -> $254.00
A27: Event
A28: Number of attendees | B28: 50
A29: Meal (breakfast, lunch, or dinner)
A30: Food | C30: $23.00 | D30: =C30*B28 -> $1,150.00
A31: Tax (10%) | C31: =SUM(C29:C30)*0.1 -> $2.30 | D31: =C31*B28 -> $115.00
A32: Food and beverage gratuity (20%) | C32: =SUM(C29:C31)*(0.2) -> $5.06 | D32: =C32*B28 -> $253.00
A33: Meal Costs Subtotal | D33: =SUM(D30:D32) -> $1,518.00
A35: List Services
A36: Valet services | B36: 1 | C36: $300.00 | D36: =SUM(B36*C36) -> $300.00
A37: Entertainment #1 | B37: 1 | C37: $800.00 | D37: =SUM(B37*C37) -> $800.00
A38: Entertainment #2 | B38: 1 | C38: $1,200.00 | D38: =SUM(B38*C38) -> $1,200.00
A39: Other services | B39: 1 | C39: $200.00 | D39: =SUM(B39*C39) -> $200.00
A40: List Service Costs Subtotal | D40: =SUM(D36:D39) -> $2,500.00
A42: Audio/Visual Services
A43: Basic PA system and podium | B43: 1 | C43: $0.00 | D43: =C43*B43 -> $0.00 | E43: Provided by venue (usually)
A44: Screen | B44: 1 | C44: $0.00 | D44: $0.00 | E44: Provided by venue (usually)
A45: XGA data/video projector rental | B45: 1 | C45: $45.00 | D45: $45.00
A46: Wireless mouse | B46: 1 | C46: $12.00 | D46: $12.00
A47: Power strips | B47: 1 | C47: $0.00 | D47: $0.00 | E47: Provided by venue (usually)
A48: Extension cords | B48: 1 | C48: $0.00 | D48: $0.00 | E48: Provided by venue (usually)
A49: Lavalier microphone | B49: 1 | C49: $0.00 | D49: $0.00 | E49: Provided by venue (usually)
A50: Labor and AV technicians | B50: 1 | C50: $300.00 | D50: $300.00
A51: Tax (8.8%) | C51: =SUM(C43:C50)*(0.088) -> $31.42 | D51: =SUM(D43:D50)*(0.088) -> $31.42
A52: Audio/Visual Services Subtotal | D52: =SUM(D43:D51) -> $388.42
A54: Additional Costs
A55: Invitation (printing and postage costs) | C55: $834.00 | D55: =C55 -> $834.00
A56: Time & Expense (T&E) | C56: $600.00 | D56: =C56 -> $600.00
A57: Company staff T&E | C57: $200.00 | D57: =C57 -> $200.00 | E57: <Number of persons onsite>
A58: Customer testimonial T&E | C58: $100.00 | D58: =C58 -> $100.00
A59: Additional Costs Subtotal | D59: =SUM(D55:D58) -> $1,734.00
A61: Giveaways | B61: 0
A62: Giveaway #1 | B62: 25 | C62: $10.00 | D62: =C62*B62 -> $250.00 | E62: <Giveaway item description>
A63: Giveaway #2 | B63: 25 | C63: $5.00 | D63: =C63*B63 -> $125.00 | E63: <Giveaway item description>
A64: Giveaway Subtotal | D64: =SUM(D62:D63) -> $375.00
A66: Event Costs Total | D66: =SUM(D33+D40+D52+D59+D64) -> $6,515.42
A67: Event Price per Person | B67: =D66/B28 -> $130.31
A69: Promotions
A70: Product giveaways | B70: 50 | C70: $8.00 | D70: =SUM(B70*C70) -> $400.00
A71: Product discounts | B71: 300 | C71: $3.00 | D71: =SUM(B71*C71) -> $900.00
A72: Special offers | B72: 200 | C72: $2.50 | D72: =SUM(B72*C72) -> $500.00
A74: Promotions Costs Total | D74: =SUM(D70:D73) -> $1,800.00
A76: Advertising
A77: Brochures (development and production) | B77: 5,000 | C77: $0.15 | D77: =SUM(B77*C77) -> $750.00
A78: Mailings | B78: 15,000 | C78: $0.04 | D78: =SUM(B78*C78) -> $600.00
A79: Postcards | B79: 15,000 | C79: $0.03 | D79: $450.00
A80: Television | B80: 2 | C80: $600.00 | D80: $1,200.00
A81: Radio | B81: 4 | C81: $300.00 | D81: $1,200.00
A82: Newspapers | B82: 6 | C82: $220.00 | D82: $1,320.00
A83: Billboards | B83: 2 | C83: $556.00 | D83: $1,112.00
A84: Bus sides | B84: 3 | C84: $125.00 | D84: $375.00
A86: Advertising Costs Total | D86: =SUM(D77:D85) -> $7,007.00
A88: Public Relations
A89: Charity events | B89: 3 | C89: $200.00 | D89: =SUM(B89*C89) -> $600.00
A90: Advertising | B90: 4 | C90: $200.00 | D90: =SUM(B90*C90) -> $800.00
A91: Employee promotions | B91: 6 | C91: $200.00 | D91: =SUM(B91*C91) -> $1,200.00
A92: Sponsorships | B92: 3 | C92: $200.00 | D92: =SUM(B92*C92) -> $600.00
A94: Public Relations Costs Total | D94: =SUM(D89:D93) -> $3,200.00
A96: ESTIMATED MARKETING GRAND TOTAL | D96: =SUM(D10+D18+D25+D66+D74+D86+D94) -> $51,526.42
